[Event "*** Titled Tuesday Blitz"]
[Site "Chess.com"]
[Date "2020.05.05"]
[Round "8"]
[White "Camels1981"]
[Black "Jadeit90"]
[Result "1-0"]
[WhiteElo "2253"]
[BlackElo "2370"]
[TimeControl "180+1"]
[EndTime "11:35:37 PDT"]
[Termination "Camels1981 won by resignation"]

1. e4 {[%clk 0:03:00.9]} 1... g6 {[%clk 0:02:59.2]} 2. d4 {[%clk 0:03:00.1]}
2... Bg7 {[%clk 0:02:56.1]} 3. Nc3 {[%clk 0:03:00.5]} 3... c5 {[%clk 0:02:55.7]}
4. Nf3 {[%clk 0:02:57.3]} 4... cxd4 {[%clk 0:02:53.9]} 5. Nxd4 {[%clk
0:02:57.1]} 5... Nc6 {[%clk 0:02:54.2]} 6. Be3 {[%clk 0:02:54.9]} 6... Nf6
{[%clk 0:02:54.5]} 7. Nxc6 {[%clk 0:02:54.7]} 7... bxc6 {[%clk 0:02:54.3]} 8. e5
{[%clk 0:02:55.1]} 8... Nd5 {[%clk 0:02:54.6]} 9. Nxd5 {[%clk 0:02:54.2]} 9...
cxd5 {[%clk 0:02:55]} 10. Qxd5 {[%clk 0:02:54.6]} 10... Rb8 {[%clk 0:02:55.4]}
11. Bc4 {[%clk 0:02:41.6]} 11... O-O {[%clk 0:02:47.4]} 12. O-O-O {[%clk
0:02:41.4]} 12... d6 {[%clk 0:02:41.5]} 13. Bxa7 {[%clk 0:02:40.7]} 13... Be6
{[%clk 0:02:39.8]} 14. Qd3 {[%clk 0:02:37.9]} 14... Bxc4 {[%clk 0:02:31.3]} 15.
Qxc4 {[%clk 0:02:37.7]} 15... Rb7 {[%clk 0:02:19.3]} 16. Bd4 {[%clk 0:02:37.3]}
16... Qa8 {[%clk 0:02:04.4]} 17. exd6 {[%clk 0:02:33.7]} 17... exd6 {[%clk
0:02:03.9]} 18. Bxg7 {[%clk 0:02:33]} 18... Kxg7 {[%clk 0:02:04.1]} 19. Rxd6
{[%clk 0:02:30.2]} 19... Rc8 {[%clk 0:02:03.7]} 20. Qd4+ {[%clk 0:02:30.2]}
20... Kg8 {[%clk 0:02:03.5]} 21. a3 {[%clk 0:02:29.8]} 21... Rbc7 {[%clk
0:01:59.7]} 22. c3 {[%clk 0:02:25.5]} 22... Rc4 {[%clk 0:01:57.5]} 23. Qd5
{[%clk 0:02:19.3]} 23... Rxc3+ {[%clk 0:01:53.1]} 24. bxc3 {[%clk 0:02:13.5]}
24... Qxa3+ {[%clk 0:01:53.1]} 25. Kd1 {[%clk 0:01:55.2]} 25... Qa1+ {[%clk
0:01:49.9]} 26. Ke2 {[%clk 0:01:51.7]} 26... Qxh1 {[%clk 0:01:49.6]} 27. Rd8+
{[%clk 0:01:50.6]} 27... Rxd8 {[%clk 0:01:50]} 28. Qxd8+ {[%clk 0:01:51]} 28...
Kg7 {[%clk 0:01:50.5]} 29. Qd4+ {[%clk 0:01:49.5]} 29... Kg8 {[%clk 0:01:50.2]}
30. g3 {[%clk 0:01:45.7]} 30... Qxh2 {[%clk 0:01:49.7]} 31. c4 {[%clk
0:01:45.9]} 31... Qh5+ {[%clk 0:01:49.6]} 32. g4 {[%clk 0:01:44.6]} 32... Qh4
{[%clk 0:01:36.2]} 33. c5 {[%clk 0:01:44]} 33... h5 {[%clk 0:01:36.4]} 34. c6
{[%clk 0:01:42.5]} 34... Qe7+ {[%clk 0:01:36.6]} 35. Kf1 {[%clk 0:01:35.3]}
35... hxg4 {[%clk 0:01:36.3]} 36. Qd7 {[%clk 0:01:35]} 36... Qe4 {[%clk
0:01:34.2]} 37. c7 {[%clk 0:01:29.5]} 37... Qh1+ {[%clk 0:01:33.9]} 38. Ke2
{[%clk 0:01:29.8]} 38... Qe4+ {[%clk 0:01:34.1]} 39. Kd2 {[%clk 0:01:27.4]}
39... Qb4+ {[%clk 0:01:33.1]} 40. Kd3 {[%clk 0:01:25]} 40... Qb3+ {[%clk
0:01:31.2]} 41. Ke4 {[%clk 0:01:18.8]} 41... Qf3+ {[%clk 0:01:31]} 42. Ke5
{[%clk 0:01:15.9]} 42... Qe2+ {[%clk 0:01:25.8]} 43. Kd6 {[%clk 0:01:15.5]}
43... Qd2+ {[%clk 0:01:23.9]} 44. Ke7 {[%clk 0:01:15.4]} 44... Qg5+ {[%clk
0:01:23.9]} 45. Ke8 {[%clk 0:01:14.9]} 45... Qe5+ {[%clk 0:01:23.5]} 46. Kd8
{[%clk 0:01:13.4]} 46... Qg5+ {[%clk 0:01:19.3]} 47. Qe7 {[%clk 0:01:10.6]}
47... Qd5+ {[%clk 0:01:18.7]} 48. Ke8 {[%clk 0:01:09.6]} 48... Qb5+ {[%clk
0:01:13]} 49. Qd7 {[%clk 0:00:53.8]} 49... Qe5+ {[%clk 0:01:11.5]} 50. Kd8
{[%clk 0:00:53.3]} 50... Qg5+ {[%clk 0:01:10.9]} 51. Kc8 {[%clk 0:00:52.9]}
51... Qa5 {[%clk 0:01:03.2]} 52. Qd8+ {[%clk 0:00:49.3]} 52... Kh7 {[%clk
0:00:52.7]} 53. Qd4 {[%clk 0:00:49.8]} 53... Qf5+ {[%clk 0:00:37.5]} 54. Kd8
{[%clk 0:00:45.2]} 54... Qg5+ {[%clk 0:00:37.3]} 55. Ke8 {[%clk 0:00:42.8]}
55... Qf5 {[%clk 0:00:35.3]} 56. Kf8 {[%clk 0:00:39.9]} 56... Qc8+ {[%clk
0:00:33.5]} 57. Qd8 {[%clk 0:00:39.7]} 1-0

[Event "*** Titled Tuesday Blitz"]
[Site "Chess.com"]
[Date "2020.05.05"]
[Round "8"]
[White "CroissantNeuf"]
[Black "Boudicca64"]
[Result "0-1"]
[WhiteElo "2343"]
[BlackElo "2006"]
[TimeControl "180+1"]
[EndTime "11:35:38 PDT"]
[Termination "Boudicca64 won on time"]

1. Nf3 {[%clk 0:02:34.1]} 1... d5 {[%clk 0:02:58.2]} 2. g3 {[%clk 0:02:33.8]}
2... e6 {[%clk 0:02:58.2]} 3. Bg2 {[%clk 0:02:33.4]} 3... Nf6 {[%clk 0:02:58.6]}
4. O-O {[%clk 0:02:33.3]} 4... Be7 {[%clk 0:02:59.1]} 5. b3 {[%clk 0:02:33.9]}
5... O-O {[%clk 0:02:57.9]} 6. Bb2 {[%clk 0:02:34.4]} 6... a5 {[%clk 0:02:55.8]}
7. c4 {[%clk 0:02:30.3]} 7... a4 {[%clk 0:02:53.8]} 8. Na3 {[%clk 0:02:27.8]}
8... axb3 {[%clk 0:02:53]} 9. axb3 {[%clk 0:02:27.4]} 9... c6 {[%clk 0:02:51.9]}
10. d3 {[%clk 0:02:23.2]} 10... Nbd7 {[%clk 0:02:40.1]} 11. Nc2 {[%clk 0:02:18]}
11... Rxa1 {[%clk 0:02:35.7]} 12. Qxa1 {[%clk 0:02:18.2]} 12... b5 {[%clk
0:02:31.3]} 13. Ba3 {[%clk 0:01:52.1]} 13... Bxa3 {[%clk 0:02:17.9]} 14. Qxa3
{[%clk 0:01:51.1]} 14... Bb7 {[%clk 0:02:18.3]} 15. Ra1 {[%clk 0:01:34.4]} 15...
Qc7 {[%clk 0:02:04]} 16. Nfd4 {[%clk 0:01:02.1]} 16... Ra8 {[%clk 0:01:58.6]}
17. Qb2 {[%clk 0:00:57.2]} 17... bxc4 {[%clk 0:01:54.4]} 18. Rxa8+ {[%clk
0:00:54.9]} 18... Bxa8 {[%clk 0:01:54.2]} 19. bxc4 {[%clk 0:00:47.2]} 19... Qb6
{[%clk 0:01:53.1]} 20. Qa2 {[%clk 0:00:29.3]} 20... Bb7 {[%clk 0:01:48.8]} 21.
h3 {[%clk 0:00:24.1]} 21... h6 {[%clk 0:01:48.5]} 22. e3 {[%clk 0:00:16.7]}
22... Ne5 {[%clk 0:01:35.3]} 23. Ne1 {[%clk 0:00:03.4]} 23... c5 {[%clk
0:01:31.6]} 24. Ndf3 {[%clk 0:00:03]} 24... Nxf3+ {[%clk 0:01:25.6]} 25. Bxf3
{[%clk 0:00:03.9]} 25... Qb4 {[%clk 0:00:58]} 26. cxd5 {[%clk 0:00:03.4]} 26...
Qxe1+ {[%clk 0:00:56.5]} 27. Kg2 {[%clk 0:00:04]} 27... Bxd5 {[%clk 0:00:51.5]}
28. Bxd5 {[%clk 0:00:04.1]} 28... Nxd5 {[%clk 0:00:52.4]} 29. Qa8+ {[%clk
0:00:03.5]} 29... Kh7 {[%clk 0:00:51.6]} 30. Qf8 {[%clk 0:00:04.1]} 30... Qe2
{[%clk 0:00:34.1]} 31. Qxc5 {[%clk 0:00:04.1]} 31... Qxd3 {[%clk 0:00:33.2]} 32.
Qc6 {[%clk 0:00:03.1]} 32... Qe4+ {[%clk 0:00:31.1]} 33. Kh2 {[%clk 0:00:02.4]}
33... Qf3 {[%clk 0:00:28.5]} 34. Qc2+ {[%clk 0:00:02.6]} 34... g6 {[%clk
0:00:24.1]} 35. Kg1 {[%clk 0:00:03]} 35... Nxe3 {[%clk 0:00:15.4]} 36. fxe3
{[%clk 0:00:02.3]} 36... Qxg3+ {[%clk 0:00:15.4]} 37. Kf1 {[%clk 0:00:01.6]}
37... Qxh3+ {[%clk 0:00:13.6]} 38. Ke2 {[%clk 0:00:02.5]} 38... Qg2+ {[%clk
0:00:13.4]} 0-1

[Event "*** Titled Tuesday Blitz"]
[Site "Chess.com"]
[Date "2020.05.05"]
[Round "8"]
[White "joksijoksi"]
[Black "suneebaker"]
[Result "1-0"]
[WhiteElo "2327"]
[BlackElo "2180"]
[TimeControl "180+1"]
[EndTime "11:35:39 PDT"]
[Termination "joksijoksi won on time"]

1. d4 {[%clk 0:03:00.9]} 1... Nf6 {[%clk 0:02:57.8]} 2. c4 {[%clk 0:02:51.8]}
2... g6 {[%clk 0:02:54.6]} 3. Nc3 {[%clk 0:02:51.2]} 3... d5 {[%clk 0:02:54.4]}
4. cxd5 {[%clk 0:02:51]} 4... Nxd5 {[%clk 0:02:54.2]} 5. e4 {[%clk 0:02:51.6]}
5... Nxc3 {[%clk 0:02:54.2]} 6. bxc3 {[%clk 0:02:52.5]} 6... Bg7 {[%clk
0:02:54.4]} 7. Bc4 {[%clk 0:02:52.8]} 7... c5 {[%clk 0:02:53.5]} 8. Ne2 {[%clk
0:02:52.3]} 8... O-O {[%clk 0:02:53.2]} 9. Be3 {[%clk 0:02:51.2]} 9... Nc6
{[%clk 0:02:52.7]} 10. h4 {[%clk 0:02:51.3]} 10... Na5 {[%clk 0:02:40.9]} 11.
Bb3 {[%clk 0:02:43.5]} 11... Nxb3 {[%clk 0:02:36.4]} 12. axb3 {[%clk 0:02:39]}
12... cxd4 {[%clk 0:02:31.7]} 13. cxd4 {[%clk 0:02:29.6]} 13... b6 {[%clk
0:02:21.4]} 14. O-O {[%clk 0:02:20.3]} 14... Bb7 {[%clk 0:02:16.1]} 15. f3
{[%clk 0:02:18]} 15... e6 {[%clk 0:02:07.9]} 16. h5 {[%clk 0:02:04]} 16... Qd7
{[%clk 0:02:03.2]} 17. hxg6 {[%clk 0:01:59]} 17... hxg6 {[%clk 0:02:01.7]} 18.
Qd2 {[%clk 0:01:54.7]} 18... Rfd8 {[%clk 0:01:52.7]} 19. Rfd1 {[%clk 0:01:46]}
19... a5 {[%clk 0:01:38.5]} 20. Bg5 {[%clk 0:01:40.9]} 20... Rdc8 {[%clk
0:01:36.7]} 21. Bh6 {[%clk 0:01:39.5]} 21... Qb5 {[%clk 0:01:28.9]} 22. Bxg7
{[%clk 0:01:34.2]} 22... Kxg7 {[%clk 0:01:28.9]} 23. Qe3 {[%clk 0:01:31.8]}
23... Rc2 {[%clk 0:01:17.2]} 24. Rac1 {[%clk 0:01:06.5]} 24... Rac8 {[%clk
0:01:12.7]} 25. Rxc2 {[%clk 0:00:59.2]} 25... Rxc2 {[%clk 0:01:11.4]} 26. Nf4
{[%clk 0:00:53.7]} 26... Rb2 {[%clk 0:00:54.5]} 27. Rd3 {[%clk 0:00:49.6]} 27...
Ba6 {[%clk 0:00:42.9]} 28. Rd2 {[%clk 0:00:15.6]} 28... Rxd2 {[%clk 0:00:26.1]}
29. Qxd2 {[%clk 0:00:15.1]} 29... Qxb3 {[%clk 0:00:26]} 30. Kh2 {[%clk
0:00:12.6]} 30... a4 {[%clk 0:00:23]} 31. Nh3 {[%clk 0:00:12.4]} 31... a3 {[%clk
0:00:21.2]} 32. Nf2 {[%clk 0:00:12.5]} 32... a2 {[%clk 0:00:20.5]} 33. Ng4
{[%clk 0:00:11.7]} 33... Kf8 {[%clk 0:00:03]} 34. Qg5 {[%clk 0:00:04.8]} 1-0

[Event "*** Titled Tuesday Blitz"]
[Site "Chess.com"]
[Date "2020.05.05"]
[Round "8"]
[White "Zq1"]
[Black "maciek_92"]
[Result "1-0"]
[WhiteElo "2564"]
[BlackElo "2705"]
[TimeControl "180+1"]
[EndTime "11:35:40 PDT"]
[Termination "Zq1 won by resignation"]

1. d4 {[%clk 0:03:00.9]} 1... f5 {[%clk 0:02:55]} 2. Nf3 {[%clk 0:02:57.8]} 2...
Nf6 {[%clk 0:02:53.3]} 3. Bg5 {[%clk 0:02:56.6]} 3... e6 {[%clk 0:02:45]} 4.
Nbd2 {[%clk 0:02:55.6]} 4... d5 {[%clk 0:02:43.7]} 5. e3 {[%clk 0:02:55.4]} 5...
c6 {[%clk 0:02:43]} 6. c4 {[%clk 0:02:54.6]} 6... Bd6 {[%clk 0:02:40.3]} 7. Bd3
{[%clk 0:02:53.2]} 7... O-O {[%clk 0:02:40.2]} 8. O-O {[%clk 0:02:52.6]} 8...
Qe8 {[%clk 0:02:37.4]} 9. Qc2 {[%clk 0:02:44.9]} 9... Ne4 {[%clk 0:02:36.2]} 10.
Bf4 {[%clk 0:02:43.6]} 10... Be7 {[%clk 0:02:32.6]} 11. h3 {[%clk 0:02:41.1]}
11... Nd7 {[%clk 0:02:31.5]} 12. Rab1 {[%clk 0:02:37]} 12... Qh5 {[%clk
0:02:30.3]} 13. Ne5 {[%clk 0:02:31.9]} 13... g5 {[%clk 0:02:20.6]} 14. Bh2
{[%clk 0:02:30.8]} 14... Rf6 {[%clk 0:01:47.5]} 15. f3 {[%clk 0:02:14.8]} 15...
Nxd2 {[%clk 0:01:43.4]} 16. Qxd2 {[%clk 0:02:14.1]} 16... Nxe5 {[%clk
0:01:36.1]} 17. Bxe5 {[%clk 0:02:09.1]} 17... Rh6 {[%clk 0:01:23.6]} 18. e4
{[%clk 0:01:52]} 18... dxe4 {[%clk 0:01:21.6]} 19. fxe4 {[%clk 0:01:51.2]} 19...
g4 {[%clk 0:01:20.8]} 20. Be2 {[%clk 0:01:44.5]} 20... Bd7 {[%clk 0:01:01]} 21.
d5 {[%clk 0:01:36.7]} 21... Rf8 {[%clk 0:00:35.2]} 22. d6 {[%clk 0:01:31.3]}
22... Bd8 {[%clk 0:00:33.4]} 23. c5 {[%clk 0:01:25.3]} 23... Qg6 {[%clk
0:00:29.4]} 24. exf5 {[%clk 0:01:19.5]} 24... exf5 {[%clk 0:00:23.5]} 25. hxg4
{[%clk 0:01:06.9]} 25... Bg5 {[%clk 0:00:11.8]} 26. Bc4+ {[%clk 0:01:02.5]}
26... Be6 {[%clk 0:00:10.5]} 27. Qd3 {[%clk 0:00:48.9]} 27... f4 {[%clk
0:00:05.1]} 28. Qb3 {[%clk 0:00:32.8]} 28... Bxc4 {[%clk 0:00:04.4]} 29. Qxc4+
{[%clk 0:00:32.7]} 29... Qe6 {[%clk 0:00:05.3]} 30. b3 {[%clk 0:00:20.5]} 30...
Re8 {[%clk 0:00:03]} 31. d7 {[%clk 0:00:18.1]} 31... Rd8 {[%clk 0:00:03.5]} 32.
Rbd1 {[%clk 0:00:16]} 32... Qxc4 {[%clk 0:00:02.1]} 33. bxc4 {[%clk 0:00:15.7]}
33... Re6 {[%clk 0:00:01.2]} 34. Bc7 {[%clk 0:00:15.4]} 34... Kf7 {[%clk
0:00:02.1]} 35. Bxd8 {[%clk 0:00:15.2]} 35... Bxd8 {[%clk 0:00:03]} 36. Rxf4+
{[%clk 0:00:14.1]} 36... Ke7 {[%clk 0:00:03.7]} 37. Kf2 {[%clk 0:00:13.1]} 37...
Bc7 {[%clk 0:00:03.7]} 38. Kf3 {[%clk 0:00:11.6]} 38... Bd8 {[%clk 0:00:03.1]}
39. Re4 {[%clk 0:00:11.7]} 39... Rxe4 {[%clk 0:00:03.5]} 40. Kxe4 {[%clk
0:00:11.9]} 1-0

[Event "*** Titled Tuesday Blitz"]
[Site "Chess.com"]
[Date "2020.05.05"]
[Round "8"]
[White "petroniy_arbitr"]
[Black "Efremov_Vlad"]
[Result "1-0"]
[WhiteElo "2305"]
[BlackElo "2133"]
[TimeControl "180+1"]
[EndTime "11:35:41 PDT"]
[Termination "petroniy_arbitr won by resignation"]

1. d4 {[%clk 0:03:00.9]} 1... d5 {[%clk 0:03:00]} 2. c4 {[%clk 0:03:01]} 2... e6
{[%clk 0:03:00.6]} 3. Nc3 {[%clk 0:03:00.8]} 3... Nf6 {[%clk 0:03:01.2]} 4. cxd5
{[%clk 0:03:01]} 4... Nxd5 {[%clk 0:03:00.9]} 5. e4 {[%clk 0:03:00.6]} 5... Nxc3
{[%clk 0:03:00.4]} 6. bxc3 {[%clk 0:03:01.5]} 6... c5 {[%clk 0:03:00.9]} 7. Nf3
{[%clk 0:03:01.1]} 7... cxd4 {[%clk 0:03:01.1]} 8. cxd4 {[%clk 0:03:01.1]} 8...
Bb4+ {[%clk 0:03:01.7]} 9. Bd2 {[%clk 0:03:01.1]} 9... Bxd2+ {[%clk 0:03:02.3]}
10. Qxd2 {[%clk 0:03:01.1]} 10... O-O {[%clk 0:03:03]} 11. Bd3 {[%clk
0:02:47.5]} 11... Nd7 {[%clk 0:03:02.5]} 12. O-O {[%clk 0:02:47.5]} 12... b6
{[%clk 0:03:03.2]} 13. Qe3 {[%clk 0:02:47.1]} 13... Bb7 {[%clk 0:03:03.1]} 14.
Rac1 {[%clk 0:02:47.6]} 14... Rc8 {[%clk 0:02:27.4]} 15. h4 {[%clk 0:02:45.3]}
15... h6 {[%clk 0:02:26.7]} 16. e5 {[%clk 0:02:26.9]} 16... Re8 {[%clk
0:02:26.1]} 17. Nd2 {[%clk 0:02:22.3]} 17... Nf8 {[%clk 0:02:20.1]} 18. Rxc8
{[%clk 0:02:19]} 18... Qxc8 {[%clk 0:02:19.3]} 19. Ne4 {[%clk 0:02:15.9]} 19...
Bxe4 {[%clk 0:02:18.5]} 20. Qxe4 {[%clk 0:02:12.3]} 20... Qc3 {[%clk 0:02:12.5]}
21. Bb1 {[%clk 0:01:59.4]} 21... Rd8 {[%clk 0:02:03.3]} 22. Rd1 {[%clk 0:01:59]}
22... b5 {[%clk 0:01:58.4]} 23. Qe3 {[%clk 0:01:57]} 23... Qxe3 {[%clk
0:01:49.3]} 24. fxe3 {[%clk 0:01:57.5]} 24... Nd7 {[%clk 0:01:45.4]} 25. Rc1
{[%clk 0:01:55.3]} 25... Nb6 {[%clk 0:01:40.9]} 26. Bd3 {[%clk 0:01:55]} 26...
Nd5 {[%clk 0:01:23.9]} 27. Kf2 {[%clk 0:01:47.8]} 27... b4 {[%clk 0:01:24]} 28.
Rc4 {[%clk 0:01:32.3]} 28... Rb8 {[%clk 0:01:20]} 29. Bc2 {[%clk 0:01:24.3]}
29... Nc3 {[%clk 0:01:15.3]} 30. a3 {[%clk 0:01:16.8]} 30... a5 {[%clk
0:01:14.9]} 31. axb4 {[%clk 0:01:16.4]} 31... axb4 {[%clk 0:01:12.6]} 32. Bb3
{[%clk 0:01:14.3]} 32... h5 {[%clk 0:01:02.5]} 33. Ke1 {[%clk 0:01:11.6]} 33...
g6 {[%clk 0:00:59.8]} 34. Kd2 {[%clk 0:01:10.1]} 34... Nd5 {[%clk 0:00:58.9]}
35. Kd3 {[%clk 0:01:07.3]} 35... Ra8 {[%clk 0:00:52]} 36. e4 {[%clk 0:00:41.6]}
36... Nf4+ {[%clk 0:00:50.1]} 37. Kc2 {[%clk 0:00:34.6]} 37... Rb8 {[%clk
0:00:39.5]} 38. g3 {[%clk 0:00:33.5]} 38... Ne2 {[%clk 0:00:39.1]} 39. d5 {[%clk
0:00:29.7]} 39... exd5 {[%clk 0:00:35.4]} 40. exd5 {[%clk 0:00:29.6]} 40... Nxg3
{[%clk 0:00:36.1]} 41. d6 {[%clk 0:00:25.6]} 41... Kf8 {[%clk 0:00:30.2]} 42.
Rc7 {[%clk 0:00:24.8]} 42... Nf5 {[%clk 0:00:13.9]} 43. Rxf7+ {[%clk 0:00:24.3]}
43... Ke8 {[%clk 0:00:11.2]} 44. d7+ {[%clk 0:00:22.6]} 44... Kd8 {[%clk
0:00:09.2]} 45. Rf8+ {[%clk 0:00:22.7]} 45... Kc7 {[%clk 0:00:09.4]} 46. Rxb8
{[%clk 0:00:22.7]} 1-0

[Event "*** Titled Tuesday Blitz"]
[Site "Chess.com"]
[Date "2020.05.05"]
[Round "8"]
[White "leoduarte"]
[Black "ThePatrick27"]
[Result "0-1"]
[WhiteElo "2368"]
[BlackElo "2540"]
[TimeControl "180+1"]
[EndTime "11:35:42 PDT"]
[Termination "ThePatrick27 won on time"]

1. e4 {[%clk 0:02:59.5]} 1... e5 {[%clk 0:02:59.1]} 2. Nf3 {[%clk 0:02:58.4]}
2... Nc6 {[%clk 0:02:59.2]} 3. Bc4 {[%clk 0:02:58.3]} 3... Bc5 {[%clk 0:02:59]}
4. O-O {[%clk 0:02:51.1]} 4... d6 {[%clk 0:02:58]} 5. d3 {[%clk 0:02:48.5]} 5...
Nf6 {[%clk 0:02:57.3]} 6. c3 {[%clk 0:02:48.2]} 6... a6 {[%clk 0:02:56.9]} 7.
Bb3 {[%clk 0:02:46.7]} 7... h6 {[%clk 0:02:52.3]} 8. Nbd2 {[%clk 0:02:37.7]}
8... O-O {[%clk 0:02:51]} 9. Re1 {[%clk 0:02:37.7]} 9... Ba7 {[%clk 0:02:47.3]}
10. Nf1 {[%clk 0:02:36.9]} 10... Re8 {[%clk 0:02:44.5]} 11. Ng3 {[%clk
0:02:31.5]} 11... Be6 {[%clk 0:02:34.9]} 12. Bc2 {[%clk 0:02:26.1]} 12... d5
{[%clk 0:02:33.1]} 13. exd5 {[%clk 0:02:24.5]} 13... Bxd5 {[%clk 0:02:34]} 14.
Be3 {[%clk 0:02:20.5]} 14... Qd7 {[%clk 0:02:27.2]} 15. Bxa7 {[%clk 0:02:15.8]}
15... Rxa7 {[%clk 0:02:28.1]} 16. c4 {[%clk 0:01:58]} 16... Bxf3 {[%clk
0:02:27.2]} 17. Qxf3 {[%clk 0:01:56.7]} 17... Nd4 {[%clk 0:02:27.2]} 18. Qd1
{[%clk 0:01:56.2]} 18... Raa8 {[%clk 0:02:22.7]} 19. Re3 {[%clk 0:01:34.7]}
19... Ng4 {[%clk 0:02:11.1]} 20. Re4 {[%clk 0:01:22.6]} 20... f5 {[%clk
0:02:10.9]} 21. Re1 {[%clk 0:01:14.1]} 21... Rad8 {[%clk 0:02:08.1]} 22. Rc1
{[%clk 0:01:07.9]} 22... Nxc2 {[%clk 0:01:44.7]} 23. Qxc2 {[%clk 0:00:57.9]}
23... Qxd3 {[%clk 0:01:33]} 24. Nxf5 {[%clk 0:00:47.3]} 24... e4 {[%clk
0:00:58]} 25. h3 {[%clk 0:00:39.8]} 25... Nf6 {[%clk 0:00:51.7]} 26. Re3 {[%clk
0:00:28.9]} 26... Qxc2 {[%clk 0:00:50.1]} 27. Rxc2 {[%clk 0:00:29.2]} 27... c5
{[%clk 0:00:47.9]} 28. Rg3 {[%clk 0:00:27]} 28... Nh5 {[%clk 0:00:43.2]} 29.
Nxh6+ {[%clk 0:00:26.2]} 29... Kh7 {[%clk 0:00:43.5]} 30. Rg5 {[%clk 0:00:14.9]}
30... Kxh6 {[%clk 0:00:42.7]} 31. Rxc5 {[%clk 0:00:15.4]} 31... e3 {[%clk
0:00:40.7]} 32. fxe3 {[%clk 0:00:15.1]} 32... Rxe3 {[%clk 0:00:41.6]} 33. Kh2
{[%clk 0:00:15.4]} 33... Red3 {[%clk 0:00:38.5]} 34. Rc7 {[%clk 0:00:14.2]}
34... Rd2 {[%clk 0:00:38.4]} 35. Rxd2 {[%clk 0:00:13.9]} 35... Rxd2 {[%clk
0:00:39.3]} 36. Rxb7 {[%clk 0:00:14.4]} 36... Nf4 {[%clk 0:00:39.6]} 37. c5
{[%clk 0:00:14.7]} 37... Rxg2+ {[%clk 0:00:38.3]} 38. Kh1 {[%clk 0:00:14.3]}
38... Rc2 {[%clk 0:00:38.8]} 39. a4 {[%clk 0:00:13]} 39... Rxc5 {[%clk
0:00:38.2]} 40. b4 {[%clk 0:00:13.2]} 40... Rc2 {[%clk 0:00:37.8]} 41. Rb6+
{[%clk 0:00:12.9]} 41... Kh5 {[%clk 0:00:36.1]} 42. Rxa6 {[%clk 0:00:13.4]}
42... Kh4 {[%clk 0:00:35.9]} 43. Ra7 {[%clk 0:00:13.3]} 43... g5 {[%clk
0:00:34.7]} 44. Kg1 {[%clk 0:00:12.8]} 44... Kg3 {[%clk 0:00:34.3]} 0-1

[Event "*** Titled Tuesday Blitz"]
[Site "Chess.com"]
[Date "2020.05.05"]
[Round "8"]
[White "EddieMarsalla"]
[Black "BabyBoss31"]
[Result "1-0"]
[WhiteElo "2526"]
[BlackElo "2307"]
[TimeControl "180+1"]
[EndTime "11:35:43 PDT"]
[Termination "EddieMarsalla won by resignation"]

1. d4 {[%clk 0:03:00.9]} 1... d5 {[%clk 0:02:57.8]} 2. Bg5 {[%clk 0:03:01.2]}
2... h6 {[%clk 0:02:52.5]} 3. Bh4 {[%clk 0:03:01.2]} 3... c6 {[%clk 0:02:50.2]}
4. c3 {[%clk 0:03:01.2]} 4... Bf5 {[%clk 0:02:46.8]} 5. Nd2 {[%clk 0:03:01.1]}
5... Qb6 {[%clk 0:02:44.6]} 6. e4 {[%clk 0:03:01]} 6... dxe4 {[%clk 0:02:39.4]}
7. Nc4 {[%clk 0:03:00.7]} 7... Qd8 {[%clk 0:02:29]} 8. h3 {[%clk 0:03:00.6]}
8... Nf6 {[%clk 0:02:22.3]} 9. Ne3 {[%clk 0:02:59.8]} 9... Bh7 {[%clk
0:02:17.2]} 10. Qb3 {[%clk 0:02:59.2]} 10... Qb6 {[%clk 0:02:16.7]} 11. Nc4
{[%clk 0:02:57.4]} 11... Qxb3 {[%clk 0:02:14.5]} 12. axb3 {[%clk 0:02:58.3]}
12... Nbd7 {[%clk 0:02:13.4]} 13. b4 {[%clk 0:02:58.7]} 13... e6 {[%clk
0:02:11.6]} 14. g4 {[%clk 0:02:57.5]} 14... Be7 {[%clk 0:02:10.2]} 15. Na5
{[%clk 0:02:52.4]} 15... Rb8 {[%clk 0:02:07.2]} 16. Bg3 {[%clk 0:02:52.1]} 16...
Ra8 {[%clk 0:02:02.1]} 17. Nxb7 {[%clk 0:02:51.8]} 17... O-O {[%clk 0:02:02.4]}
18. Ba6 {[%clk 0:02:47]} 18... Nb6 {[%clk 0:01:59.5]} 19. Ne2 {[%clk 0:02:43.8]}
19... Nfd5 {[%clk 0:01:51.4]} 20. Na5 {[%clk 0:02:41.1]} 20... e3 {[%clk
0:01:43.4]} 21. Nxc6 {[%clk 0:02:38.1]} 21... exf2+ {[%clk 0:01:41.2]} 22. Kxf2
{[%clk 0:02:39]} 22... Bg5 {[%clk 0:01:40.6]} 23. Rhf1 {[%clk 0:02:27.5]} 23...
Be4 {[%clk 0:01:30.4]} 24. Ne5 {[%clk 0:02:04.3]} 24... Be3+ {[%clk 0:01:27.4]}
25. Ke1 {[%clk 0:02:03.4]} 25... Bg2 {[%clk 0:01:27.8]} 26. h4 {[%clk
0:01:46.8]} 26... Bxf1 {[%clk 0:01:25.6]} 27. Kxf1 {[%clk 0:01:47.7]} 27... f5
{[%clk 0:01:23.3]} 28. gxf5 {[%clk 0:01:26.6]} 28... Rxf5+ {[%clk 0:01:18.2]}
29. Kg2 {[%clk 0:01:26.8]} 29... Raf8 {[%clk 0:01:11.2]} 30. Bd3 {[%clk
0:01:26.4]} 30... R5f6 {[%clk 0:00:58.2]} 31. Ng4 {[%clk 0:01:12]} 31... R6f7
{[%clk 0:00:43.1]} 32. c4 {[%clk 0:01:09.4]} 32... Nxb4 {[%clk 0:00:18.8]} 33.
Bg6 {[%clk 0:01:06.2]} 33... Nxc4 {[%clk 0:00:16.2]} 34. Bxf7+ {[%clk
0:01:04.1]} 34... Rxf7 {[%clk 0:00:17.1]} 35. b3 {[%clk 0:00:59.8]} 35... Nc2
{[%clk 0:00:14.8]} 36. Ra2 {[%clk 0:00:56]} 36... Nxd4 {[%clk 0:00:12.2]} 37.
bxc4 {[%clk 0:00:54]} 37... Nxe2 {[%clk 0:00:09.9]} 38. Rxe2 {[%clk 0:00:54.9]}
38... Bc5 {[%clk 0:00:09.4]} 39. Rxe6 {[%clk 0:00:54]} 39... Kh7 {[%clk
0:00:10.3]} 40. Bf2 {[%clk 0:00:50.1]} 40... Bxf2 {[%clk 0:00:10.2]} 41. Nxf2
{[%clk 0:00:51]} 41... Rf4 {[%clk 0:00:10.8]} 42. Re4 {[%clk 0:00:51.1]} 42...
Rf5 {[%clk 0:00:09.9]} 43. Rd4 {[%clk 0:00:50]} 43... a5 {[%clk 0:00:09.3]} 44.
Ne4 {[%clk 0:00:47.8]} 44... a4 {[%clk 0:00:09]} 45. c5 {[%clk 0:00:48.4]} 45...
a3 {[%clk 0:00:08.6]} 46. Ra4 {[%clk 0:00:48.3]} 46... Re5 {[%clk 0:00:08.6]}
47. Kf3 {[%clk 0:00:48.3]} 47... g5 {[%clk 0:00:07.7]} 48. hxg5 {[%clk
0:00:48.2]} 48... hxg5 {[%clk 0:00:08.6]} 49. Rxa3 {[%clk 0:00:48.7]} 49... Kg6
{[%clk 0:00:08.6]} 50. Ra6+ {[%clk 0:00:48.1]} 50... Kf7 {[%clk 0:00:07.4]} 51.
c6 {[%clk 0:00:47.4]} 51... Ke8 {[%clk 0:00:07.4]} 52. Ra8+ {[%clk 0:00:44.1]}
52... Ke7 {[%clk 0:00:07]} 53. c7 {[%clk 0:00:43.7]} 53... Rf5+ {[%clk
0:00:05.3]} 54. Ke3 {[%clk 0:00:43.3]} 1-0